Cogmind - Beta 16.1 @@@ ROGUE MODE // 2026.02.11 @ 20:36:24 Player: shapeshifter Result: Destroyed by P-80 Master with Gamma Rifle Performance ------------- Evolutions (7) 3500 Regions Visited (19) 3800 Robots Destroyed (124) 620 Value Destroyed (5473) 5473 Prototype IDs (54) 1080 Alien Tech Used (2) 400 Bonus (10311) 10311 TOTAL SCORE: 25184 Bonus ------- High Alert Combat Kills 793 Follower Combat Kills 4618 Awakened Behemoth Slayer 1000 Entered DSFs 500 Met Imprinter 300 Acquired ECA 300 Met Zhirov 300 Scanned by Researcher 500 Acquired SGEMP 2000 Cogmind --------- Core Integrity 0/1300 Matter 129/300 Energy 90/100 System Corruption 14% Temperature Cool (6) Movement Flying (242) Ox3 Location -3/Testing Parts ------- > --- POWER (2) -------- (None) > --- PROPULSION (5) --- Cooled Impulse Thruster > --- UTILITY (8) ------ High-capacity Storage Unit Advanced Signal Interpreter > --- WEAPON (6) ------- (None) > --- INVENTORY (20) --- Faulty Cooled Impulse Thruster Advanced Heat Sink 2N-1CE's Frost Array Medium Storage Unit Encrypted Comm Array System Mapper Compact HERF Cannon Hypervelocity Multirail Fusion Bomb Launcher Improved Remote Datajack Stasis Beam CR-A16's Behemoth Slayer SGEMP Prototype Peak State ------------ > --- POWER ------------ Light Antimatter Reactor Particle Reactor > --- PROPULSION ------- Biometal Leg High-density Centrium Leg Myomer Exoskeleton > --- UTILITY ---------- Advanced Heat Sink Advanced Heat Sink Advanced Heat Sink High-capacity Storage Unit Advanced Sensor Array Advanced Signal Interpreter Layered Medium Armor Plating Experimental Thermal Shield > --- WEAPON ----------- Railgun Railgun Helical Railgun Helical Railgun Multirail Hypervelocity Multirail > --- INVENTORY -------- Flexi-carbon Leg Biometal Leg Biometal Leg Biometal Leg Biometal Leg Medium Storage Unit Encrypted Comm Array Phase Shifter High-powered Tractor Beam Compact HERF Cannon Improved Matter Neutralizer Improved Remote Datajack CR-A16's Behemoth Slayer [Rating: 178] Favorites ----------- Power Heavy Deuterium Engine Engine Heavy Deuterium Engine Power Core Enhanced Nuclear Core Reactor Heavy Antimatter Reactor Propulsion Wheel Treads Light Treads Leg Biometal Leg Wheel Wheel Flight Unit Field Propulsion Array Utility Improved Heat Sink Device Improved Heat Sink Storage Large Storage Unit Processor Advanced Signal Interpreter Hackware Improved System Shield Protection Gun Armor Weapon 1B-0RG's Assimilator Energy Gun EM Pulse Gun Energy Cannon Powered Cannon Ballistic Gun Helical Railgun Ballistic Cannon Light Cannon Launcher Tactical Quantum Warhead Special Weapon Improved Remote Datajack Slashing Weapon Carbide Saw Piercing Weapon Force Lance Special Melee Weapon 1B-0RG's Assimilator Build | -11 -10 -10 -8 -7 -7 -7 -6 -6 -6 -5 -5 -5 -5 -4 -4 -4 -4 -3 -3 ------- Run | Yrd Mat Sub Mat Fac Low Zio Pro Fac DSF Fac Upp Upp Zhi Pro Fac Upp Upp Res Tes Slots Evolved 14 | . . . 4 2 . . . 2 . 2 . . . . 2 . . 2 . Power 1 | . . . . . . . . . . . . . . . 1 . . . . Propulsion 3 | . . . . 1 . . . . . . . . . . . . . 2 . Utility 6 | . . . 1 1 . . . 2 . 1 . . . . 1 . . . . Weapon 4 | . . . 3 . . . . . . 1 . . . . . . . . . Parts Attached 159 | 7 3 18 15 8 . 1 3 . 5 5 1 3 3 5 29 7 . 12 34 Power 17 | 1 . 1 2 3 . . . . . 1 . . 1 . 4 1 . . 3 Engine 6 | 1 . . 2 2 . . . . . 1 . . . . . . . . . Core 4 | . . 1 . 1 . . . . . . . . . . 2 . . . . Reactor 7 | . . . . . . . . . . . . . 1 . 2 1 . . 3 Propulsion 40 | 2 . 9 3 2 . 1 . . 1 1 . . . 1 5 1 . 3 11 Treads 3 | 2 . 1 . . . . . . . . . . . . . . . . . Leg 12 | . . . . . . . . . . . . . . . 3 1 . . 8 Wheel 19 | . . 8 3 2 . 1 . . 1 1 . . . 1 2 . . . . Hover . | . . . . . . . . . . . . . . . . . . . . Flight 6 | . . . . . . . . . . . . . . . . . . 3 3 Utility 63 | 2 1 2 6 2 . . 3 . 4 3 1 . 2 4 13 2 . 7 11 Device 27 | 1 . 1 2 . . . . . 2 1 . . 2 2 4 1 . 3 8 Storage 11 | 1 1 . . . . . 3 . 2 . 1 . . 1 . . . 1 1 Processor 5 | . . . . . . . . . . . . . . . 2 . . 3 . Hackware 10 | . . . . . . . . . . 2 . . . 1 6 1 . . . Protection 10 | . . 1 4 2 . . . . . . . . . . 1 . . . 2 Artifact . | . . . . . . . . . . . . . . . . . . . . Weapon 39 | 2 2 6 4 1 . . . . . . . 3 . . 7 3 . 2 9 Energy Gun 2 | 1 . . . . . . . . . . . . . . . . . . 1 Energy Cannon 8 | . . 2 . 1 . . . . . . . 2 . . 1 . . . 2 Ballistic Gun 13 | 1 . 2 . . . . . . . . . . . . 2 2 . . 6 Ballistic Cannon 7 | . 2 2 3 . . . . . . . . . . . . . . . . Launcher 1 | . . . . . . . . . . . . . . . 1 . . . . Special Weapon 1 | . . . . . . . . . . . . 1 . . . . . . . Impact Weapon . | . . . . . . . . . . . . . . . . . . . . Slashing Weapon 1 | . . . . . . . . . . . . . . . . . . 1 . Piercing Weapon 4 | . . . . . . . . . . . . . . . 3 1 . . . Special Melee Weapon 2 | . . . 1 . . . . . . . . . . . . . . 1 . Unidentified Prototypes 24 | . . . 1 2 . . . . . . . . 3 . 6 . . 2 10 Corrupted Parts 1 | . . . . . . . . . . . . . . . . . . . 1 System Corruption 1 | . . . . . . . . . . . . . . . . . . . 1 Parts Lost 66 | . 1 8 1 1 . . . . . 1 . . . 4 19 6 . 2 23 Power 10 | . . 1 1 . . . . . . 1 . . . . 2 1 . 1 3 Propulsion 16 | . . 3 . . . . . . . . . . . 1 3 3 . . 6 Utility 23 | . 1 . . 1 . . . . . . . . . 2 9 1 . 1 8 Weapon 17 | . . 4 . . . . . . . . . . . 1 5 1 . . 6 Highest Loss Streak 12 | . 1 4 1 1 . . . . . 1 . . . 3 10 6 . 2 12 To Critical Strikes 9 | . . 1 1 . . . . . . . . . . 1 1 1 . . 4 Average Backups 13 | 2 7 4 10 14 15 13 12 12 14 21 22 23 22 23 20 5 5 7 11 Power 1 | . . . . 1 2 2 2 2 2 2 2 2 1 1 1 . . . . Propulsion 1 | 1 2 . . . 2 1 1 1 1 1 2 2 2 1 . . . 1 3 Utility 8 | . 1 1 8 11 10 8 7 7 9 14 14 14 14 16 13 1 1 1 2 Weapon 1 | . 3 2 1 . . 1 2 2 1 1 2 1 1 1 1 1 1 1 3 Tool/Special . | . . . . . . . . . . . . . . . . . . . . Unused Backups 38 | . . 6 2 5 . 5 . . 4 2 . . 2 . 2 . . 1 9 Power 3 | . . 1 1 . . . . . . . . . 1 . . . . . . Propulsion 6 | . . . . . . . . . 1 . . . . . . . . . 5 Utility 19 | . . 3 1 3 . 4 . . 2 2 . . . . 2 . . . 2 Weapon 6 | . . 2 . 2 . . . . 1 . . . . . . . . . 1 Tool/Special 4 | . . . . . . 1 . . . . . . 1 . . . . 1 1 Average Slot Usage (%) 70 | . 87 85 72 64 68 68 68 61 64 63 65 68 69 65 62 64 63 56 69 Engine 5 | . 14 2 8 7 6 6 6 5 5 8 10 10 7 1 . . . . . Core 3 | . . 11 . 3 6 6 6 5 5 1 . . . . 3 1 . . . Reactor 1 | . . . . . . . . . . . . . 2 5 4 3 5 3 4 Treads 3 | . 28 9 . . . . . . . . . . . . . . . . . Leg 1 | . . . . . . . . . . . . . . . 2 6 5 . 12 Wheel 10 | . . 18 18 15 18 18 18 16 11 10 10 10 10 6 4 . . . . Device 8 | . 2 1 3 5 6 6 6 5 14 14 12 15 14 14 11 6 5 8 15 Storage 6 | . 14 5 9 6 6 6 6 5 5 5 7 5 5 6 10 . . 3 4 Hackware 3 | . . . . . . . . . . 3 5 5 5 8 8 24 26 15 . Protection 8 | . . 8 14 12 12 12 11 11 11 10 10 10 9 6 . 1 . . 2 Energy Cannon 5 | . . 9 2 5 6 6 6 5 5 5 5 8 10 6 3 . . . 1 Ballistic Gun 2 | . 1 7 . . . . . . . . . . . . . 3 5 . 16 Ballistic Cannon 4 | . 24 11 9 . . . . . . . . . . . . . . . . Special Melee Weapon 3 | . . . 6 6 6 6 6 5 5 5 5 5 5 5 3 . . . . Peak Build Rating 178 | 7 7 20 84 112 111 114 114 114 127 136 137 140 149 150 143 100 63 91 178 Average Rating 92 | 5 6 14 68 109 111 112 113 114 123 132 134 138 143 137 116 67 63 79 133 On Entrance 89 | . 7 7 20 82 111 111 114 114 114 127 134 134 140 149 134 92 63 63 79 Avg Prop Armor Cover (%) 7 | . . 6 . . . . . . . . . . . . . . . 10 8 Naked Turns . | . . . . . . . . . . . . . . . . . . . . Heaviest Build 199 | 15 32 39 99 119 115 115 115 115 178 183 187 191 199 199 197 52 25 33 136 Greatest Support 150 | 40 40 40 40 36 36 42 42 42 42 38 38 38 38 38 86 86 25 34 150 Greatest Overweight (x) 39 | . . 3 3 4 3 3 2 2 4 4 4 5 5 6 39 1 . 1 1 Average Overweight (x) 2 | . . . 2 3 3 2 2 2 3 4 4 4 4 5 5 . . . . Largest Inventory Capacity 25 | 8 15 15 15 15 15 15 15 15 25 25 25 25 25 25 25 5 5 10 20 Average Capacity 17 | 7 14 8 15 15 15 15 15 15 18 25 25 25 25 25 23 5 5 9 17 Most Carried 25 | 4 8 12 15 15 15 15 15 15 22 25 25 25 25 25 25 5 5 10 20 Average Carried 15 | 3 7 6 12 14 15 14 14 15 16 23 24 25 24 24 20 4 5 9 12 Final Capacity 25 | 8 15 15 15 15 15 15 15 15 25 25 25 25 25 25 5 5 5 10 20 Final Carried 25 | 4 8 9 15 15 15 15 15 15 22 24 25 25 25 25 5 5 5 10 14 Class Distribution -------------------- 43% | Mutant 22% | Scavenger-Mutant 11% | Tank 8% | Subdweller-Mutant 5% | Hacker-Mutant 3% | Scavenger-Executioner Dominant Class ---------------- Mutant | -10/Materials Subdweller-Mutant | -10/Subcaves Mutant | -8/Materials Scavenger-Mutant | -7/Factory Scavenger-Mutant | -7/Lower Caves Scavenger-Mutant | -7/Zion Scavenger-Mutant | -6/Proximity Caves Scavenger-Mutant | -6/Factory Mutant | -6/DSF Mutant | -5/Factory Mutant | -5/Upper Caves Tank | -5/Upper Caves Tank | -5/Zhirov Hacker-Mutant | -4/Proximity Caves Mutant | -4/Factory Gladiator | -4/Upper Caves Gladiator | -4/Upper Caves Mutant | -3/Research Scavenger-Executioner | -3/Testing Resources | -11 -10 -10 -8 -7 -7 -7 -6 -6 -6 -5 -5 -5 -5 -4 -4 -4 -4 -3 -3 ----------- Run | Yrd Mat Sub Mat Fac Low Zio Pro Fac DSF Fac Upp Upp Zhi Pro Fac Upp Upp Res Tes Matter Collected 13998 | 275 174 722 971 856 . 438 704 92 1039 1502 1449 725 . 250 3062 194 31 74 1440 Remotely 3517 | . . . . . . . . . . 274 780 . . . 2153 . . . 310 Salvage Created 5618 | 65 157 624 426 641 . . 199 . 107 93 301 355 . 163 867 114 83 95 1328 Parts 285 | 9 14 48 28 22 . . 17 . 7 3 9 20 . 5 30 4 1 10 58 Haulers Intercepted 2 | . . . . 1 . . . . . . . . . . 1 . . . . Recyclers Shooed 2 | . . . 1 1 . . . . . . . . . . . . . . . Parts Field Recycled . | . . . . . . . . . . . . . . . . . . . . Retrieved Matter . | . . . . . . . . . . . . . . . . . . . . Parts Self-Destructed 122 | . . 9 . . . 1 13 . . . 28 34 . 29 . 8 . . . Prevented 2 | . . . . . . . . . . . . 2 . . . . . . . Parts Restored . | . . . . . . . . . . . . . . . . . . . . Kills | -11 -10 -10 -8 -7 -7 -7 -6 -6 -6 -5 -5 -5 -5 -4 -4 -4 -4 -3 -3 ------- Run | Yrd Mat Sub Mat Fac Low Zio Pro Fac DSF Fac Upp Upp Zhi Pro Fac Upp Upp Res Tes Combat Hostiles Destroyed 95 | . 6 21 9 6 . . 3 . 2 1 4 6 . 3 15 4 . 2 13 Melee 4 | . . . . . . . . . . . . . . . 2 . . 2 . Guns 28 | . 1 6 . . . . . . . . . . . . 4 4 . . 13 Cannons 52 | . 5 15 9 4 . . 2 . 2 . 3 5 . 3 4 . . . . AOE 3 | . . . . . . . . . . . . . . . 3 . . . . Classes Destroyed 20 | 1 4 1 4 1 . . 3 . . . . . . . 4 . . . 2 Worker 9 | . . . 1 3 . . . . . 1 . . . . 4 . . . . Builder 2 | . . . . . . . . . . . . . . . 2 . . . . Tunneler 3 | 3 . . . . . . . . . . . . . . . . . . . Hauler 2 | . . . . 1 . . . . . . . . . . 1 . . . . Recycler 5 | . . . 1 3 . . . . . . . . . . . . . . 1 Operator 1 | . 1 . . . . . . . . . . . . . . . . . . Watcher 3 | . 1 . 1 1 . . . . . . . . . . . . . . . Swarmer 14 | . 3 3 . 2 . . . . . . . 1 . 1 . 4 . . . Cutter 2 | . . . . . . . . . . . . . . . 1 . . 1 . Saboteur 1 | . . . . . . . . . . . . . . . 1 . . . . Grunt 29 | . 3 . 6 3 . . . . 1 . 2 2 . 2 4 . . . 6 Brawler 1 | . . . 1 . . . . . . . . . . . . . . . . Researcher 4 | . . . . . . . . . . . . . . . . . . . 4 Sentry 11 | . . . 2 1 . . . . 1 1 2 1 . . . . . . 3 Specialist 1 | . . . . . . . . . . . . . . . 1 . . . . Hunter 7 | . . . . . . . 1 . . . . . . . 6 . . . . Programmer 7 | . . . . . . . 1 . . . . 2 . . 1 . . 1 2 Behemoth 2 | . . . . . . . 1 . . . . . . . 1 . . . . Striker 2 | . . . . . . . . . . . . . . . . . . . 2 Subdweller 18 | . . 18 . . . . . . . . . . . . . . . . . Decomposer 3 | . . . . . . . . . . . . . . . . 1 2 . . Packrat 1 | . . . . . . . . . . . . . . . . . 1 . . Best Kill Streak 8 | 1 3 3 5 6 . . 1 . 1 1 3 5 . 2 8 4 . 2 4 Combat Bots Only 5 | . 3 3 4 4 . . 1 . 1 1 3 5 . 2 4 4 . 2 3 Max Kills in Single Turn 3 | 1 1 1 1 1 . . 1 . 1 1 1 1 . 1 3 1 1 1 2 Gunslinging . | . . . . . . . . . . . . . . . . . . . . Exploded 1 | . . . . . . . . . . . . . . . 1 . . . . Melee 1 | . . . . . . . . . . . . . . . 1 . . 1 . Uniques/NPCs Destroyed . | . . . . . . . . . . . . . . . . . . . . Combat | -11 -10 -10 -8 -7 -7 -7 -6 -6 -6 -5 -5 -5 -5 -4 -4 -4 -4 -3 -3 -------- Run | Yrd Mat Sub Mat Fac Low Zio Pro Fac DSF Fac Upp Upp Zhi Pro Fac Upp Upp Res Tes Hostile Shots Fired 1281 | . 27 119 66 43 . . 21 . 25 12 26 14 . 50 331 60 . 30 457 Missed 458 | . 12 30 26 13 . . 4 . 15 3 11 7 . 32 119 18 . 14 154 Hits 823 | . 15 89 40 30 . . 17 . 10 9 15 7 . 18 212 42 . 16 303 Melee 20 | . . . . . . . . . 3 . . . . 1 3 . . 1 12 Projectile 803 | . 15 89 40 30 . . 17 . 7 9 15 7 . 17 209 42 . 15 291 AOE 4 | . . 2 . . . . . . . . . . . . 2 . . . . Critical Strikes 50 | . . 1 3 1 . . 1 . . 2 2 . . 5 7 2 . 1 25 Part Disruptions 2 | . . . . . . . . . . . . . . . . . . . 2 Damage Taken 16332 | . 155 1897 653 453 . . 316 . 238 170 288 110 . 420 4090 632 . 394 6516 Core 2811 | . 16 209 52 58 . . 31 . 46 . 33 . . 12 850 189 . 68 1247 Absorbed by Shields 392 | . . . . . . . . . 46 60 96 38 . 40 112 . . . . Ignored by Resistances 789 | . . . . . . . . . . . . . . . 491 . . 18 280 Regen/Repaired (Parts) 737 | . . . 31 9 6 . 37 . 159 24 95 43 . 117 216 . . . . Core Remaining (%) 69 | 100 . 10 90 . . . 87 . 94 . . . . 95 . . 7 . . Volleys Fired 450 | 5 42 97 29 38 . 1 10 1 10 11 12 13 . 18 73 15 1 . 74 Largest 6 | 2 2 2 4 1 . 1 1 1 1 1 1 1 . 1 2 1 1 . 6 Hottest 241 | 60 60 160 141 40 . 40 40 40 40 40 40 40 . 98 105 35 25 . 241 Shots Fired 778 | 10 82 192 75 39 . 1 10 1 10 11 12 13 . 18 76 16 2 . 210 Gun 304 | 10 10 60 . . . . . . . . . . . . 14 16 2 . 192 Cannon 461 | . 72 132 75 39 . 1 10 1 10 11 12 13 . 18 56 . . . 11 Launcher 4 | . . . . . . . . . . . . . . . 4 . . . . Special 9 | . . . . . . . . . . . . . . . 2 . . . 7 Kinetic 518 | 5 77 137 75 . . . . . . . . . . . 14 16 2 . 192 Thermal 237 | . . 55 . 39 . 1 10 1 10 11 12 13 . 18 56 . . . 11 Explosive 4 | . . . . . . . . . . . . . . . 4 . . . . Electromagnetic 10 | 5 5 . . . . . . . . . . . . . . . . . . Robot Hit Streak 13 | 8 9 9 6 8 . . 4 . 3 3 2 6 . 5 7 5 1 . 13 Robot Miss Streak 10 | 1 2 3 5 3 . . 1 . 2 2 3 2 . 3 4 6 1 . 10 Penetration Max 2 | . . . . . . . . . . . . . . . . . . . 2 Secondary Targets 8 | . . 2 . . . . . . . . . . . . . . . . 6 Max Gunslinging Chain 1 | . . 1 . . . . . . . . . . . . . . . . 1 Shots Hit Robots 404 | 8 23 96 36 20 . . 8 . 5 5 6 9 . 9 49 7 3 3 117 Core Hits 197 | 4 9 31 20 6 . . 4 . 2 2 5 5 . 4 35 5 2 2 61 Critical Kills 23 | . . . . 3 . . 1 . . 1 1 1 . . 6 . . . 10 Critical Parts Destroyed 20 | . . . . . . . . . . . . . . . 1 . . . 19 Critical Strikes 58 | . . 2 5 3 . . 1 . . 1 1 1 . . 8 . . . 36 Meltdown 10 | . . . . 3 . . 1 . . 1 1 1 . . 3 . . . . Destroy 40 | . . . . . . . . . . . . . . . 4 . . . 36 Blast 7 | . . 2 5 . . . . . . . . . . . . . . . . Impale 1 | . . . . . . . . . . . . . . . 1 . . . . Melee Attacks 31 | . . . . . . . . . . . . . . . 16 . 2 7 6 Impact . | . . . . . . . . . . . . . . . . . . . . Slashing . | . . . . . . . . . . . . . . . . . . . . Piercing 31 | . . . . . . . . . . . . . . . 16 . 2 7 6 Sneak Attacks 2 | . . . . . . . . . . . . . . . . . 2 . . Combat Hostiles . | . . . . . . . . . . . . . . . . . . . . Follow-up Attacks . | . . . . . . . . . . . . . . . . . . . . Damage Inflicted 13029 | 103 387 2087 895 1152 . . 462 . 300 310 454 512 . 500 2724 195 183 147 2618 Guns 3916 | 103 95 622 . . . . . . . . . . . . 279 195 12 . 2610 Cannons 7524 | . 292 1462 895 1152 . . 462 . 300 310 454 512 . 500 1185 . . . . Explosions 828 | . . . . . . . . . . . . . . . 828 . . . . Melee 750 | . . . . . . . . . . . . . . . 432 . 171 147 . Ramming 11 | . . 3 . . . . . . . . . . . . . . . . 8 Kinetic 5607 | 50 330 1236 895 . . . . . . . . . . . 279 195 12 . 2610 Thermal 5723 | . . 848 . 1152 . . 462 . 300 310 454 512 . 500 1185 . . . . Explosive 828 | . . . . . . . . . . . . . . . 828 . . . . Electromagnetic 110 | 53 57 . . . . . . . . . . . . . . . . . . Impact . | . . . . . . . . . . . . . . . . . . . . Slashing . | . . . . . . . . . . . . . . . . . . . . Piercing 750 | . . . . . . . . . . . . . . . 432 . 171 147 . Highest Corruption 13 | . . . . 2 2 2 . . . . . . . . 4 4 4 1 13 Average Corruption 4 | . . . . 1 2 2 . . . . . . . . 4 4 4 1 5 Corruption Purged . | . . . . . . . . . . . . . . . . . . . . Corruption Blocked . | . . . . . . . . . . . . . . . . . . . . Effects 62 | . . . . 2 1 . . . . . . . . . 24 9 1 1 24 Message Errors 12 | . . . . . . . . . . . . . . . 6 2 . . 4 Matter Fused 18 | . . . . . . . . . . . . . . . 6 3 . 1 8 Heat Flow Errors 7 | . . . . . 1 . . . . . . . . . 3 . . . 3 Energy Discharges 8 | . . . . . . . . . . . . . . . 3 1 . . 4 Parts Rejected 3 | . . . . . . . . . . . . . . . . . . . 3 Parts Fused 1 | . . . . . . . . . . . . . . . 1 . . . . Data Loss (minor) 5 | . . . . 1 . . . . . . . . . . 2 . . . 2 Data Loss (major) 3 | . . . . . . . . . . . . . . . 3 . . . . Misfires 4 | . . . . 1 . . . . . . . . . . . 2 1 . . Weapon Failures 1 | . . . . . . . . . . . . . . . . 1 . . . Overload Shots . | . . . . . . . . . . . . . . . . . . . . Overflow Damage 346 | . 9 . . 175 . . . . . . . . . 54 12 . 96 . . Projectiles 250 | . 9 . . 175 . . . . . . . . . 54 12 . . . . Explosions . | . . . . . . . . . . . . . . . . . . . . Melee 96 | . . . . . . . . . . . . . . . . . 96 . . Knockbacks 16 | . 4 5 7 . . . . . . . . . . . . . . . . Impact . | . . . . . . . . . . . . . . . . . . . . Kinetic 16 | . 4 5 7 . . . . . . . . . . . . . . . . Secondary . | . . . . . . . . . . . . . . . . . . . . Self-Inflicted Damage . | . . . . . . . . . . . . . . . . . . . . Shots . | . . . . . . . . . . . . . . . . . . . . Rammed 1 | . . 1 . . . . . . . . . . . . . . . . . Targets Rammed 2 | . . 1 . . . . . . . . . . . . . . . . 1 Kicked 1 | . . . . . . . . . . . . . . . . . . . 1 Crushed . | . . . . . . . . . . . . . . . . . . . . Highest Temperature 396 | . 18 198 381 24 161 9 18 6 . 9 4 . . 35 277 . . 396 352 Average Temperature 72 | . 10 66 115 11 83 9 10 6 . 3 2 . . 12 42 . . 213 97 Received Heat Transfer 2349 | . 45 312 378 75 . . . . 30 70 88 30 . 84 477 . . 18 742 Effects 2 | . . . . . . . . . . . . . . . . . . . 2 Shutdowns 2 | . . . . . . . . . . . . . . . . . . . 2 Siege Activations . | . . . . . . . . . . . . . . . . . . . . Martial Activations 1 | . . . . . . . . . . . . . . . . . . . 1 Total Turns 4 | . . . . . . . . . . . . . . . . . . . 4 Longest Duration 4 | . . . . . . . . . . . . . . . . . . . 4 Shielding Activations . | . . . . . . . . . . . . . . . . . . . . Robots Disrupted . | . . . . . . . . . . . . . . . . . . . . Combat Hostiles . | . . . . . . . . . . . . . . . . . . . . Robots Corrupted . | . . . . . . . . . . . . . . . . . . . . Combat Hostiles . | . . . . . . . . . . . . . . . . . . . . Parts Fried . | . . . . . . . . . . . . . . . . . . . . Impact Corruptions . | . . . . . . . . . . . . . . . . . . . . Robots Melted 10 | . . . . 3 . . 1 . . 1 1 1 . . 3 . . . . Combat Hostiles 8 | . . . . 2 . . 1 . . 1 1 1 . . 2 . . . . Parts Melted 23 | . . 1 . 6 . . 4 . . 2 2 4 . 1 3 . . . . Heat Transferred 2474 | . . 1147 . . . . . . . . . . . 200 1127 . . . . Parts Sabotaged . | . . . . . . . . . . . . . . . . . . . . Parts Stolen . | . . . . . . . . . . . . . . . . . . . . Parts Stripped . | . . . . . . . . . . . . . . . . . . . . Power Chain Reactions . | . . . . . . . . . . . . . . . . . . . . Alert | -11 -10 -10 -8 -7 -7 -7 -6 -6 -6 -5 -5 -5 -5 -4 -4 -4 -4 -3 -3 ------- Run | Yrd Mat Sub Mat Fac Low Zio Pro Fac DSF Fac Upp Upp Zhi Pro Fac Upp Upp Res Tes Maximum Alert Level 4 | . . . . . . . . . 1 1 . . . . 4 . . 2 2 Low Security (%) 65 | 100 100 . 100 100 . . . 100 90 80 . . . . . . . . . Level 1 4 | . . . . . . . . . 9 19 . . . . 4 . . . 12 Level 2 23 | . . . . . . . . . . . . . . . 52 . . 100 87 Level 3 2 | . . . . . . . . . . . . . . . 13 . . . . Level 4 4 | . . . . . . . . . . . . . . . 29 . . . . Level 5 . | . . . . . . . . . . . . . . . . . . . . High Security . | . . . . . . . . . . . . . . . . . . . . Max Security . | . . . . . . . . . . . . . . . . . . . . Sterilizations 1 | . . . . . . . . . 1 . . . . . . . . . . Peak Influence 1593 | 5 92 . 181 119 . . . 15 267 291 . . . . 1593 . . 503 631 Initial 480 | . . . . . . . . . . 140 . . . . 335 . . 480 257 Average 246 | . 10 . 62 45 . . . 2 112 113 . . . . 834 . . 452 499 Influence Increases 7467 | 15 205 70 466 393 . . 155 20 347 449 497 491 . 592 2532 154 . 148 933 Destroy 0b10 Robot/C 3920 | . 120 60 260 220 . . 80 . 220 200 320 260 . 340 1160 120 . 80 480 Destroy 0b10 Robot/NC 175 | 15 10 . 20 45 . . . . . 15 . . . 10 50 . . 5 5 Destroy Leader 610 | . 32 10 64 56 . . 30 . 30 54 . 20 . 10 234 20 . 10 40 Allied During Kill 1541 | . . . 18 37 . . 45 . 65 161 177 211 . 232 506 14 . 9 66 Successful Hack 59 | . 13 . 26 9 . . . 5 . . . . . . . . . . 6 Disable Machine 270 | . 15 . 15 15 . . . 15 30 15 . . . . 60 . . 15 90 Destroy Structure 307 | . . . 18 11 . . . . 2 4 . . . . 192 . . 14 66 Advance Influence 300 | . . . . . . . . . . . . . . . 300 . . . . Partial Spotted 15 | . . . . . . . . . . . . . . . . . . . 15 Lose Combat Pursuer 270 | . 15 . 45 . . . . . . . . . . . 30 . . 15 165 Influence Decreases 6983 | 15 205 70 466 358 24 11 155 20 80 471 430 458 345 536 1025 799 205 403 907 Entered New Map 1858 | . . . . . 14 11 . . . 127 92 60 345 . 21 579 175 233 201 Time Decay 3865 | 15 195 60 426 328 10 . 155 20 . 334 318 398 . 436 434 160 30 130 416 Lost Part 580 | . 10 10 . 10 . . . . . 10 . . . 40 190 60 . 20 230 Lost Ally 680 | . . . 40 20 . . . . 80 . 20 . . 60 380 . . 20 60 Squads Dispatched 38 | . 2 . 1 1 . . . . 1 1 . . . . 21 . . 1 10 Investigation . | . . . . . . . . . . . . . . . . . . . . Extermination 7 | . . . . 1 . . . . . 1 . . . . 2 . . . 3 Reinforcement 20 | . 2 . 1 . . . . . 1 . . . . . 9 . . 1 6 Assault 2 | . . . . . . . . . . . . . . . 1 . . . 1 Garrison 9 | . . . . . . . . . . . . . . . 9 . . . . Intercept . | . . . . . . . . . . . . . . . . . . . . Searches Triggered . | . . . . . . . . . . . . . . . . . . . . Construction Impeded 2 | . . . . . . . . . . . . . . . 2 . . . . Haulers Reinforced 3 | . . . . . . . . . . . . . . . 3 . . . . Active Scanning Responses . | . . . . . . . . . . . . . . . . . . . . Cargo Convoy Interrupts 1 | . . . . . . . . . . . . . . . 1 . . . . Stealth | -11 -10 -10 -8 -7 -7 -7 -6 -6 -6 -5 -5 -5 -5 -4 -4 -4 -4 -3 -3 --------- Run | Yrd Mat Sub Mat Fac Low Zio Pro Fac DSF Fac Upp Upp Zhi Pro Fac Upp Upp Res Tes Distress Signals 12 | . 2 . . 2 . . . . . . . . . 1 3 . . . 4 Communications Jammed . | . . . . . . . . . . . . . . . . . . . . Distress Signals . | . . . . . . . . . . . . . . . . . . . . Times Spotted 289 | . 11 23 22 19 . . 3 . 11 8 19 12 . 18 75 6 . 11 51 Peak Tracking Total 16 | . 4 3 5 5 . . 2 . 3 2 9 5 . 8 16 4 . 7 12 Tactical Retreats 14 | . 1 . 3 . . . . . . . . . . . 2 . . 1 7 Traps | -11 -10 -10 -8 -7 -7 -7 -6 -6 -6 -5 -5 -5 -5 -4 -4 -4 -4 -3 -3 ------- Run | Yrd Mat Sub Mat Fac Low Zio Pro Fac DSF Fac Upp Upp Zhi Pro Fac Upp Upp Res Tes Traps Triggered 2 | . . . . . . . . . 1 . . . . . . . . . 1 Indirectly . | . . . . . . . . . . . . . . . . . . . . Trap Hack Attempts . | . . . . . . . . . . . . . . . . . . . . Triggered . | . . . . . . . . . . . . . . . . . . . . Disarmed . | . . . . . . . . . . . . . . . . . . . . Reprogrammed . | . . . . . . . . . . . . . . . . . . . . Reused . | . . . . . . . . . . . . . . . . . . . . Traps Extracted . | . . . . . . . . . . . . . . . . . . . . Installed . | . . . . . . . . . . . . . . . . . . . . Triggered . | . . . . . . . . . . . . . . . . . . . . Machines | -11 -10 -10 -8 -7 -7 -7 -6 -6 -6 -5 -5 -5 -5 -4 -4 -4 -4 -3 -3 ---------- Run | Yrd Mat Sub Mat Fac Low Zio Pro Fac DSF Fac Upp Upp Zhi Pro Fac Upp Upp Res Tes Machines Disabled 19 | . 1 1 1 1 . . . 1 2 1 . . . . 4 . . 1 6 Max in Single Turn 1 | . 1 1 . 1 . . . 1 . 1 . . . . 1 . . 1 1 Garrison Access 1 | . . . . . . . . . . 1 . . . . . . . . . Machines Repaired . | . . . . . . . . . . . . . . . . . . . . Machines Dismantled . | . . . . . . . . . . . . . . . . . . . . Machines Sabotaged . | . . . . . . . . . . . . . . . . . . . . Overloaded Fab Kills . | . . . . . . . . . . . . . . . . . . . . Hacking | -11 -10 -10 -8 -7 -7 -7 -6 -6 -6 -5 -5 -5 -5 -4 -4 -4 -4 -3 -3 --------- Run | Yrd Mat Sub Mat Fac Low Zio Pro Fac DSF Fac Upp Upp Zhi Pro Fac Upp Upp Res Tes Machines Accessed 35 | . 2 2 7 3 . . 1 1 . 4 . 3 4 1 2 . . 1 4 Terminals 19 | . 2 . 7 1 . . 1 1 . . . 1 . 1 . . . 1 4 Fabricators 2 | . . . . 1 . . . . . 1 . . . . . . . . . Repair Stations . | . . . . . . . . . . . . . . . . . . . . Recycling Units 5 | . . . . 1 . . . . . 2 . . . . 2 . . . . Scanalyzers . | . . . . . . . . . . . . . . . . . . . . Garrison Access 1 | . . . . . . . . . . 1 . . . . . . . . . Total Hacks 89 | . 8 4 17 7 . . 1 2 . 9 . 6 17 6 4 . . 1 7 Successful 60 | . 5 4 12 2 . . 1 1 . 4 . 6 17 6 1 . . . 1 Failed 29 | . 3 . 5 5 . . . 1 . 5 . . . . 3 . . 1 6 Catastrophic 5 | . . . . 2 . . . . . 1 . . . . . . . 1 1 Database Lockouts . | . . . . . . . . . . . . . . . . . . . . Manual 26 | . 7 . 15 . . . . . . 1 . . . . . . . . 3 Terminals 47 | . 8 . 17 4 . . 1 2 . . . 1 . 6 . . . 1 7 Fabricators 5 | . . . . 2 . . . . . 3 . . . . . . . . . Repair Stations . | . . . . . . . . . . . . . . . . . . . . Recycling Units 8 | . . . . 1 . . . . . 3 . . . . 4 . . . . Scanalyzers . | . . . . . . . . . . . . . . . . . . . . Garrison Access 3 | . . . . . . . . . . 3 . . . . . . . . . Terminal Hacks 45 | . 1 4 6 2 . . 1 1 . . . 6 17 6 . . . . 1 Record 20 | . . 3 . . . . 1 . . . . 5 5 6 . . . . . Part Schematic 5 | . . . 1 . . . . . . . . . 4 . . . . . . Robot Analysis 4 | . . . . . . . . . . . . . 4 . . . . . . Prototype ID Bank 4 | . . . . . . . . . . . . . 4 . . . . . . Open Door 1 | . . . . . . . . . . . . 1 . . . . . . . Open DSF 1 | . . . . . . . . 1 . . . . . . . . . . . Branch Access Points 1 | . . . 1 . . . . . . . . . . . . . . . . Emergency Access Points 1 | . . . . 1 . . . . . . . . . . . . . . . Terminal Index 1 | . . . 1 . . . . . . . . . . . . . . . . Registered Components 1 | . . . 1 . . . . . . . . . . . . . . . . Zone Layout 5 | . 1 . 2 1 . . . . . . . . . . . . . . 1 Proto ID Catalog 1 | . . 1 . . . . . . . . . . . . . . . . . Fabricator Hacks 2 | . . . . . . . . . . 2 . . . . . . . . . Load Schematic 1 | . . . . . . . . . . 1 . . . . . . . . . Build 1 | . . . . . . . . . . 1 . . . . . . . . . Repair Station Hacks . | . . . . . . . . . . . . . . . . . . . . Recycling Unit Hacks 2 | . . . . . . . . . . 1 . . . . 1 . . . . Retrieve Components 2 | . . . . . . . . . . 1 . . . . 1 . . . . Scanalyzer . | . . . . . . . . . . . . . . . . . . . . Garrison Access Hacks 1 | . . . . . . . . . . 1 . . . . . . . . . Seal Access 1 | . . . . . . . . . . 1 . . . . . . . . . Unauthorized Hacks 10 | . 4 . 6 . . . . . . . . . . . . . . . . Terminals 10 | . 4 . 6 . . . . . . . . . . . . . . . . Botnet 3 | . 2 . 1 . . . . . . . . . . . . . . . . Skim 7 | . 2 . 5 . . . . . . . . . . . . . . . . Fabricators . | . . . . . . . . . . . . . . . . . . . . Repair Stations . | . . . . . . . . . . . . . . . . . . . . Recycling Units . | . . . . . . . . . . . . . . . . . . . . Scanalyzers . | . . . . . . . . . . . . . . . . . . . . Garrison Access . | . . . . . . . . . . . . . . . . . . . . Data Cores Recovered . | . . . . . . . . . . . . . . . . . . . . Used . | . . . . . . . . . . . . . . . . . . . . Hacking Detections 19 | . 2 . 5 3 . . . . . 3 . . . 1 1 . . 1 3 Full Trace Events . | . . . . . . . . . . . . . . . . . . . . Feedback Events . | . . . . . . . . . . . . . . . . . . . . Feedback Blocked . | . . . . . . . . . . . . . . . . . . . . Robot Schematics Acquired 5 | . . . . . . 4 . . . . . . . . . . . . 1 Robots Built 3 | . . . . . . . . . . 3 . . . . . . . . . Authchips 1 | . . . . . . . . . . 1 . . . . . . . . . Time 222 | . . . . . . . . . . 222 . . . . . . . . . Total Robot Build Rating 27 | . . . . . . . . . . 27 . . . . . . . . . Part Schematics Acquired 29 | . . . 1 . . 15 . . . . . . 4 . . . . . 9 Parts Built . | . . . . . . . . . . . . . . . . . . . . Authchips . | . . . . . . . . . . . . . . . . . . . . Time . | . . . . . . . . . . . . . . . . . . . . Total Part Build Rating . | . . . . . . . . . . . . . . . . . . . . Part Studies Acquired . | . . . . . . . . . . . . . . . . . . . . Parts Repaired . | . . . . . . . . . . . . . . . . . . . . Time . | . . . . . . . . . . . . . . . . . . . . Parts Recycled . | . . . . . . . . . . . . . . . . . . . . Recycled Matter . | . . . . . . . . . . . . . . . . . . . . Retrieved Matter . | . . . . . . . . . . . . . . . . . . . . Retrieved Components 3 | . . . . . . . . . . 3 . . . . . . . . . Parts Scanalyzed . | . . . . . . . . . . . . . . . . . . . . Part Schematics Acquired . | . . . . . . . . . . . . . . . . . . . . Parts Damaged . | . . . . . . . . . . . . . . . . . . . . Bothacking | -11 -10 -10 -8 -7 -7 -7 -6 -6 -6 -5 -5 -5 -5 -4 -4 -4 -4 -3 -3 ------------ Run | Yrd Mat Sub Mat Fac Low Zio Pro Fac DSF Fac Upp Upp Zhi Pro Fac Upp Upp Res Tes Used RIF Installer . | . . . . . . . . . . . . . . . . . . . . Robots Hacked 1 | . . . . . . . . . . . . . . . 1 . . . . Non-combat . | . . . . . . . . . . . . . . . . . . . . Combat 1 | . . . . . . . . . . . . . . . 1 . . . . Robot Hacks Applied 1 | . . . . . . . . . . . . . . . 1 . . . . parse_system 1 | . . . . . . . . . . . . . . . 1 . . . . Relay Couplers Released . | . . . . . . . . . . . . . . . . . . . . Fabnet Peak Effective % . | . . . . . . . . . . . . . . . . . . . . Robots Rewired 6 | . . . . . . . . . . . 2 . . . 1 . . . 3 Allies Hacked 4 | . . . . 1 . . . . . 1 . . . . 2 . . . . Hacks Repelled . | . . . . . . . . . . . . . . . . . . . . Allies | -11 -10 -10 -8 -7 -7 -7 -6 -6 -6 -5 -5 -5 -5 -4 -4 -4 -4 -3 -3 -------- Run | Yrd Mat Sub Mat Fac Low Zio Pro Fac DSF Fac Upp Upp Zhi Pro Fac Upp Upp Res Tes Total Allies 14 | . . . . . . 2 . . . 3 2 . . . 4 . . . 3 Largest Group 3 | . . . . . . 2 2 . . 3 2 1 1 1 3 1 1 1 3 Highest-Rated Group 237 | . . . . . . 59 59 . . 177 59 29 29 29 150 142 142 142 237 Highest-Rated Ally 142 | . . . . . . 31 31 . . 59 30 29 29 29 142 142 142 142 79 Initial Warlord ECA Mod 9 | . . . . . . . . . . 9 9 9 9 8 8 6 6 5 5 Warlord Squad Rendezvous 2 | . . . . . . . . . . . . . . . 2 . . . . Muscle 2 | . . . . . . . . . . . . . . . 2 . . . . Total Orders 23 | . . . . 2 . 2 . . 7 2 2 . 2 6 . . . . . STAY 12 | . . . . 1 . 1 . . 4 1 1 . 1 3 . . . . . FOLLOW 11 | . . . . 1 . 1 . . 3 1 1 . 1 3 . . . . . Ally Attacks 845 | . . . 18 39 . . 9 . 142 56 65 33 . 102 336 7 . 8 30 Total Damage 19785 | . . . 415 591 . . 185 . 1391 1394 1618 675 . 2123 9149 168 . 301 1775 Kills 126 | . . . 5 6 . . 1 . 9 12 12 7 . 16 46 2 . 3 7 Allies Corrupted 5 | . . . . . . . . . . . . . . . 5 . . . . Allies Melted 1 | . . . . . . . . . . . . . . . 1 . . . . Borg Created 31 | . . . 5 1 1 . 3 . 2 2 3 . . . 14 . . . . Largest Collective 8 | . . . 3 3 3 . 6 . 4 6 8 . . . 6 . . . . Intel | -11 -10 -10 -8 -7 -7 -7 -6 -6 -6 -5 -5 -5 -5 -4 -4 -4 -4 -3 -3 ------- Run | Yrd Mat Sub Mat Fac Low Zio Pro Fac DSF Fac Upp Upp Zhi Pro Fac Upp Upp Res Tes Active Infowar (turns) 2292 | 69 260 248 . . . . . . . . . . . . 672 105 . 168 770 Optics 672 | . . . . . . . . . . . . . . . 672 . . . . Sensors 1039 | . . . . . . . . . . . . . . . . 105 . 164 770 Terrain 248 | . . 248 . . . . . . . . . . . . . . . . . Seismic 333 | 69 260 . . . . . . . . . . . . . . . . 4 . Robot Analysis Total 4 | . . . . . . . . . . . . . 4 . . . . . . Derelict Logs Recovered 10 | . . 1 . . . 1 1 . . . 2 3 . 2 . . . . . Drone Launches . | . . . . . . . . . . . . . . . . . . . . Drone Recoveries . | . . . . . . . . . . . . . . . . . . . . Exploration | -11 -10 -10 -8 -7 -7 -7 -6 -6 -6 -5 -5 -5 -5 -4 -4 -4 -4 -3 -3 ------------- Run | Yrd Mat Sub Mat Fac Low Zio Pro Fac DSF Fac Upp Upp Zhi Pro Fac Upp Upp Res Tes Turns Passed 15695 | 181 1295 2098 1262 920 34 1657 1040 125 329 744 706 951 248 1363 1068 323 69 269 1013 Spaces Moved 9016 | 103 376 1417 718 472 8 1281 717 75 189 417 389 514 148 696 365 208 44 315 564 Core 40 | 14 . . . . . . . . . . . . . . 1 25 . . . Treads 613 | 89 376 148 . . . . . . . . . . . . . . . . . Legs 749 | . . . . . . . . . . . . . . . 58 183 44 30 434 Wheels 7199 | . . 1269 718 472 8 1281 717 75 189 417 389 514 148 696 306 . . . . Hover . | . . . . . . . . . . . . . . . . . . . . Flight 415 | . . . . . . . . . . . . . . . . . . 285 130 Fastest Speed 30 | 50 160 90 107 116 131 123 123 123 123 150 150 150 150 165 100 50 120 30 30 Average Speed 133 | 145 160 119 130 138 131 123 123 123 136 150 150 160 156 180 183 109 120 44 95 Slowest Speed 2000 | 160 160 240 135 150 131 131 123 123 150 150 150 165 165 190 2000 170 120 130 210 Overloaded Moves 5 | . . . . . . . . . . . . . . . . . . . 5 Propulsion Burnouts . | . . . . . . . . . . . . . . . . . . . . Robots Hopped 2 | . . . . . . . . . . . . . . . . . . 2 . Potential Cave-ins 7 | . . . . . . . . . . . . . . . 2 . . . 5 Cave-ins Triggered 1 | . . . . . . . . . . . . . . . . . . . 1 Teleports 1 | . . . . . . . . . . . . . . . 1 . . . . Exploration Rate (%) 46 | 6 54 80 45 20 3 85 95 3 90 12 65 77 60 85 17 44 4 8 81 Regions Visited 19 Branch Regions 11 Pre-discovered Areas 11 | . . 1 1 . . 1 . . . . 3 1 3 1 . . . . . Known Exits Taken 9 | . . . 1 1 . . 1 1 . 1 . . . 1 . 1 1 1 . Unknown Exits Taken 9 | 1 1 1 . . 1 1 . . . . 1 1 1 . 1 . . . . Scrap Searched 31 | . . 14 . . . 2 4 . . . 3 2 . 5 . 1 . . . Spaces Dug 17 | . . . . 1 . . . . . . . . . . 7 . . 1 8 Terrain Destroyed 275 | . . 7 17 10 . . 2 . 2 2 3 4 . 7 164 9 . 1 47 Melee 6 | . . . . . . . . . . . . . . . 2 . . 1 3 Projectile 118 | . . 7 17 10 . . 2 . 2 2 3 4 . 7 24 9 . . 31 AOE 138 | . . . . . . . . . . . . . . . 138 . . . . Terrain Rammed . | . . . . . . . . . . . . . . . . . . . . Walls Destroyed . | . . . . . . . . . . . . . . . . . . . . Machines Disabled . | . . . . . . . . . . . . . . . . . . . . Actions | -11 -10 -10 -8 -7 -7 -7 -6 -6 -6 -5 -5 -5 -5 -4 -4 -4 -4 -3 -3 --------- Run | Yrd Mat Sub Mat Fac Low Zio Pro Fac DSF Fac Upp Upp Zhi Pro Fac Upp Upp Res Tes Total 11919 | 125 989 1627 983 707 29 1352 859 107 251 523 488 628 166 783 627 288 55 429 903 Wait 1818 | . 559 39 174 168 21 61 120 32 15 67 60 98 2 61 69 48 9 69 146 Move 8992 | 102 375 1416 717 471 7 1280 716 74 188 416 388 513 147 695 364 207 43 310 563 Hop 2 | . . . . . . . . . . . . . . . . . . 2 . Pick Up 178 | 11 7 20 27 11 . 3 2 . 18 11 1 . 5 2 18 1 . 8 33 Fast Attach 46 | . . 2 . 3 . . . . 1 . . 2 2 2 5 6 . 12 11 Attach 117 | 7 2 12 9 4 . . . . 2 3 . . 2 1 35 3 . 4 33 Detach 26 | . . . . . . . . . . . . . 1 . 6 4 . 4 11 Swap 64 | . 1 8 6 2 . 1 6 . 2 6 16 1 1 2 8 . . . 4 Drop 134 | . 3 19 15 9 . 6 2 . 10 7 . 1 6 2 17 4 . 13 20 Fire 450 | 5 42 97 29 38 . 1 10 1 10 11 12 13 . 18 73 15 1 . 74 Melee 31 | . . . . . . . . . . . . . . . 16 . 2 7 6 Ram . | . . . . . . . . . . . . . . . . . . . . Kick 1 | . . . . . . . . . . . . . . . . . . . 1 Crush 1 | . . 1 . . . . . . . . . . . . . . . . . Escape Stasis 4 | . . . . . . . . . 3 . . . . . . . . . 1 Rewire 10 | . . . 1 . . . . . . . 8 . . . 1 . . . . Trap . | . . . . . . . . . . . . . . . . . . . . Miscellaneous 45 | . . 13 5 1 1 . 3 . 2 2 3 . . . 15 . . . . Route ------- -11/Scrapyard -10/Materials (discovered 3 exits: [*Mat x2] / *Sub) -10/Subcaves (discovered 2 exits: *Mat x2) -8/Materials (discovered 4 exits: *Fac x3 / *Sto) -7/Factory (discovered 3 exits: *Fac x2 / *Low) -7/Lower Caves (discovered 2 exits: Low / [*Zio]) -7/Zion -6/Proximity Caves -6/Factory -6/DSF -5/Factory (discovered 2 exits: *Upp x2) -5/Upper Caves -5/Upper Caves (discovered 2 exits: *Fac / *Zhi) -5/Zhirov -4/Proximity Caves -4/Factory -4/Upper Caves -4/Upper Caves -3/Research (discovered 2 exits: Arm / *Tes) -3/Testing (discovered 1 exit: *Res) History --------- Turn | Location | Event 6 | -11/Scrapyard | Discovered new exit (range 15) 182 | -11/Scrapyard | Entered Materials 301 | -10/Materials | Build established: Mutant 464 | -10/Materials | Discovered new exit (range 15) 1371 | -10/Materials | Discovered new exit (range 15) 1471 | -10/Materials | Discovered new exit (range 5) 1477 | -10/Materials | Entered Subcaves 1756 | -10/Subcaves | A Subdweller sparked back to life 1756 | -10/Subcaves | A Subdweller sparked back to life 1756 | -10/Subcaves | A Subdweller sparked back to life 1814 | -10/Subcaves | Learned location of Zion (-7) 1814 | -10/Subcaves | Met a Zionite searching for "candidates" 1835 | -10/Subcaves | Lost 4 parts (1p1n2w) 1839 | -10/Subcaves | Core integrity fell below 50% 1847 | -10/Subcaves | Found Prototype Energy Cannon 1891 | -10/Subcaves | Shifting Twisted Machinery released Mak. Power Source 1951 | -10/Subcaves | Shifting Twisted Machinery released Sub. Machine Gun 1993 | -10/Subcaves | Visited Clippyterm 1997 | -10/Subcaves | Learned Research security intel 2040 | -10/Subcaves | Discovered new exit (range 9) 2414 | -10/Subcaves | Build established: Subdweller-Mutant 2727 | -10/Subcaves | Core integrity fell below 20% 2790 | -10/Subcaves | Shifting Twisted Machinery released Battle Rifle 2823 | -10/Subcaves | Shifting Twisted Machinery released Flamer 2962 | -10/Subcaves | A swath of the cavern ceiling suddenly collapsed 3094 | -10/Subcaves | Discovered new exit (range 12) 3293 | -10/Subcaves | A swath of the cavern ceiling suddenly collapsed 3422 | -10/Subcaves | Visited 4L-MR0's lab 3426 | -10/Subcaves | Identified Powered Cannon 3429 | -10/Subcaves | Found Prototype Special Melee Weapon 3435 | -10/Subcaves | Found Gun Armor 3575 | -10/Subcaves | Entered Materials 3575 | -8/Materials | Evolved 4 slots: Utility x1, Weapon x3 3576 | -8/Materials | Identified exit to Storage 3721 | -8/Materials | Discovered new exit (range 4) 3870 | -8/Materials | Build established: Tank 3933 | -8/Materials | Identified 1B-0RG's Assimilator 3934 | -8/Materials | Assimilating Serf 3a into Collective. 3939 | -8/Materials | Assimilating Scavenger 3a into Collective. 4009 | -8/Materials | Assimilating Transporter 3a into Collective. 4230 | -8/Materials | Build established: Mutant 4253 | -8/Materials | Assimilating Soldier 3a into Collective. 4256 | -8/Materials | Assimilating Trooper 3a into Collective. 4691 | -8/Materials | Learned Recycling recycling unit intel 4729 | -8/Materials | Learned 4 Factory zone layouts 4759 | -8/Materials | Learned 4 Lower Caves zone layouts 4777 | -8/Materials | Identified exit to Factory 4786 | -8/Materials | Learned location of 1 exit from Lower Caves 4787 | -8/Materials | Learned Factory emergency access door positions 4797 | -8/Materials | Learned location of Extension (-5) 4818 | -8/Materials | Learned location of 2 exits from Factory 4837 | -8/Materials | Entered Factory 4837 | -7/Factory | Accompanied by 3 allies 4837 | -7/Factory | Evolved 2 slots: Propulsion x1, Utility x1 4838 | -7/Factory | Identified exit to Lower Caves 4838 | -7/Factory | Identified exit to Factory 4868 | -7/Factory | Attached Gun Armor, gained temporary slots: Weapon x2 4869 | -7/Factory | Attached Powered Cannon, gained temporary slot: Power 5106 | -7/Factory | Discovered exit to Factory (range 11) 5182 | -7/Factory | Assimilating Trooper 4a into Collective. 5554 | -7/Factory | Build established: Scavenger-Mutant 5757 | -7/Factory | Entered Lower Caves 5757 | -7/Lower Caves | Accompanied by 2 allies 5757 | -7/Lower Caves | Assimilating Commando 4a into Collective. 5758 | -7/Lower Caves | A Derelict revealed a hidden shortcut to a safe place 5758 | -7/Lower Caves | Identified exit to Lower Caves 5791 | -7/Lower Caves | Entered Zion 5791 | -7/Zion | Accompanied by 3 allies 5844 | -7/Zion | System corruption cleaned by Quarantine Array 5893 | -7/Zion | Discovered new exit (range 16) 5991 | -7/Zion | Found CR-A16's Pointy Stick 6215 | -7/Zion | Learned location of Data Miner (-6) 6315 | -7/Zion | Met Imprinter 6491 | -7/Zion | Learned Factory emergency access door positions 6934 | -7/Zion | Found Prototype Energy Gun 7206 | -7/Zion | Gained Derelict followers 7448 | -7/Zion | Entered Proximity Caves 7448 | -6/Proximity Caves | Accompanied by 5 allies 7464 | -6/Proximity Caves | Assimilating ML-TER(i) into Collective. 7472 | -6/Proximity Caves | Assimilating 0Q-LY9(g) into Collective. 7502 | -6/Proximity Caves | Assimilating D8-CKF(S) into Collective. 8129 | -6/Proximity Caves | Spotted B-75 Beast 8139 | -6/Proximity Caves | Destroyed B-75 Beast 8399 | -6/Proximity Caves | Discovered exit to Factory (range 11) 8488 | -6/Proximity Caves | Entered Factory 8488 | -6/Factory | Accompanied by 6 allies 8488 | -6/Factory | Evolved 2 slots: Utility x2 8594 | -6/Factory | Identified exit to DSF 8613 | -6/Factory | Entered DSF 8613 | -6/DSF | Accompanied by 6 allies 8650 | -6/DSF | Additional patrols routed to DSF 8860 | -6/DSF | Discovered new exit (range 16) 8892 | -6/DSF | Assimilating Soldier 5a into Collective. 8902 | -6/DSF | Assimilating Fighter 5a into Collective. 8919 | -6/DSF | Sterilization system engaged 8939 | -6/DSF | Ambient heat levels rising (+10) 8942 | -6/DSF | Entered Factory 8942 | -5/Factory | Accompanied by 4 allies 8942 | -5/Factory | Evolved 2 slots: Utility x1, Weapon x1 8943 | -5/Factory | Identified exit to Upper Caves 8946 | -5/Factory | Build established: Mutant 9159 | -5/Factory | Assimilating Sentinel 6a into Collective. 9186 | -5/Factory | Discovered exit to Upper Caves (range 15) 9335 | -5/Factory | Fabricated C-57 Dissector? 9365 | -5/Factory | Assimilating Dissector 6b into Collective. 9686 | -5/Factory | Entered Upper Caves 9686 | -5/Upper Caves | Accompanied by 6 allies 9697 | -5/Upper Caves | Assimilating Veteran 6a into Collective. 9704 | -5/Upper Caves | Met a Warlord Commander 9705 | -5/Upper Caves | Learned location of Warlord (-4) 9706 | -5/Upper Caves | Warlord Commander delivered Encrypted Comm Array 9709 | -5/Upper Caves | Found Encrypted Comm Array 9766 | -5/Upper Caves | Attracted the attention of an 0b10 checkpoint 9785 | -5/Upper Caves | Assimilating Soldier 6a into Collective. 9837 | -5/Upper Caves | Learned location of Armory (-3) 10146 | -5/Upper Caves | Attracted the attention of an 0b10 outpost 10216 | -5/Upper Caves | Assimilating Fighter 6a into Collective. 10339 | -5/Upper Caves | Discovered new exit (range 10) 10392 | -5/Upper Caves | Entered another Upper Caves area 10392 | -5/Upper Caves | Accompanied by 9 allies 10394 | -5/Upper Caves | Attracted the attention of an 0b10 checkpoint 10404 | -5/Upper Caves | Discovered new exit (range 9) 10612 | -5/Upper Caves | Learned Factory stockpile data 10870 | -5/Upper Caves | Build established: Tank 11182 | -5/Upper Caves | Discovered new exit (range 8) 11237 | -5/Upper Caves | Learned Factory non-interactive machine intel 11343 | -5/Upper Caves | Entered Zhirov 11343 | -5/Zhirov | Accompanied by 9 allies 11343 | -5/Zhirov | Discovered new exit (range 3) 11370 | -5/Zhirov | Met Zhirov 11399 | -5/Zhirov | Learned location of Quarantine (-2) 11399 | -5/Zhirov | Learned location of Testing (-3) 11399 | -5/Zhirov | Learned location of Command (-1) 11412 | -5/Zhirov | Zhirov requested help retrieving the SGEMP Prototype 11436 | -5/Zhirov | Found Alien Artifact 11436 | -5/Zhirov | Identified Integrated Reactor 11436 | -5/Zhirov | Installed Integrated Reactor, increased core energy generation (+10) 11522 | -5/Zhirov | Found Alien Artifact 11591 | -5/Zhirov | Entered Proximity Caves 11591 | -4/Proximity Caves | Accompanied by 9 allies 11708 | -4/Proximity Caves | Spotter reported a threat 11741 | -4/Proximity Caves | Spotter reported a threat 11776 | -4/Proximity Caves | Attracted the attention of an 0b10 base 11849 | -4/Proximity Caves | Learned Extension stockpile data 11849 | -4/Proximity Caves | Learned Extension emergency access door positions 11849 | -4/Proximity Caves | Learned Factory emergency access door positions 11849 | -4/Proximity Caves | Learned location of 2 exits from Upper Caves 12017 | -4/Proximity Caves | Identified exit to Factory 12035 | -4/Proximity Caves | Learned location of 1 exit from Research 12103 | -4/Proximity Caves | Lost 3 parts (1n1u1w) 12492 | -4/Proximity Caves | Build established: Hacker-Mutant 12569 | -4/Proximity Caves | Ambushed by research squad 12954 | -4/Proximity Caves | Entered Factory 12954 | -4/Factory | Accompanied by 6 allies 12954 | -4/Factory | Evolved 2 slots: Power x1, Utility x1 12957 | -4/Factory | Loaded intel: 196 non-interactive machine locations 12976 | -4/Factory | Garrison activated, responded to threat 13029 | -4/Factory | Spotted B-86 Titan 13045 | -4/Factory | Revealed the true nature of CR-A16's Pointy Stick 13045 | -4/Factory | Destroyed B-86 Titan 13121 | -4/Factory | Assimilating Veteran 7a into Collective. 13249 | -4/Factory | Lost 3 allies 13263 | -4/Factory | Garrison activated, responded to threat 13264 | -4/Factory | Assimilating Veteran 7b into Collective. 13269 | -4/Factory | Assimilating Veteran 7c into Collective. 13315 | -4/Factory | Assimilating Sentinel 7a into Collective. 13320 | -4/Factory | Assimilating Assassin 7a into Collective. 13337 | -4/Factory | Assimilating Veteran 7d into Collective. 13355 | -4/Factory | Lost 3 allies 13381 | -4/Factory | Joined by Warlord Muscle squad 13385 | -4/Factory | Assimilating Z2-LYX(l) into Collective. 13394 | -4/Factory | Assimilating 4G-OJT(l) into Collective. 13401 | -4/Factory | Assimilating 14-YAM(b) into Collective. 13403 | -4/Factory | Lost 3 allies 13425 | -4/Factory | Build established: Mutant 13656 | -4/Factory | Assimilating Conveyor 7a into Collective. 13678 | -4/Factory | Garrison activated, responded to threat 13690 | -4/Factory | Cargo convoy interrupted 13706 | -4/Factory | Assimilating Freighter 7a into Collective. 13709 | -4/Factory | Assimilating Veteran 7e into Collective. 13721 | -4/Factory | Assimilating Archangel 7a into Collective. 13741 | -4/Factory | Assimilating Assassin 7b into Collective. 13771 | -4/Factory | Core integrity fell below 50% 13790 | -4/Factory | Lost 10 parts (1p3n4u2w) 13794 | -4/Factory | Lost 8 allies 13821 | -4/Factory | Found Prototype Launcher 13822 | -4/Factory | Identified Tactical Quantum Warhead 13855 | -4/Factory | Found Prototype Device 13856 | -4/Factory | Identified Transdimensional Reconstructor 13856 | -4/Factory | Warped through subspace 13857 | -4/Factory | Identified Exp. Thermal Shield 13880 | -4/Factory | Lost 5 parts (1p1u3w) 13907 | -4/Factory | Joined by Warlord Muscle squad 13954 | -4/Factory | First assault squad dispatched 13979 | -4/Factory | Discovered new exit (range 7) 14022 | -4/Factory | Entered Upper Caves 14022 | -4/Upper Caves | Accompanied by 1 ally 14023 | -4/Upper Caves | Identified exit to Upper Caves 14115 | -4/Upper Caves | Core integrity fell below 20% 14155 | -4/Upper Caves | Lost 6 parts (1p3n1u1w) 14332 | -4/Upper Caves | Build established: Gladiator 14345 | -4/Upper Caves | Entered another Upper Caves area 14345 | -4/Upper Caves | Accompanied by 1 ally 14346 | -4/Upper Caves | Identified exit to Research 14414 | -4/Upper Caves | Entered Research 14414 | -3/Research | Accompanied by 1 ally 14414 | -3/Research | Evolved 2 slots: Propulsion x2 14415 | -3/Research | Identified exit to Armory 14416 | -3/Research | Identified exit to Testing 14596 | -3/Research | Found Prototype Processor 14596 | -3/Research | Identified Spectral Analyzer 14683 | -3/Research | Entered Testing 14718 | -3/Testing | Found Prototype Ballistic Gun 14718 | -3/Testing | Identified Hyp. Multirail 14732 | -3/Testing | Spotted Alpha 7 14736 | -3/Testing | Rewired 2R-5A6(K) 14740 | -3/Testing | Rewired MX-L69(K) 14743 | -3/Testing | Rewired KG-J9U(K) 14745 | -3/Testing | Scanned by Researcher 14758 | -3/Testing | Allies destroyed Alpha 7 14765 | -3/Testing | Found Prototype Ballistic Gun 14765 | -3/Testing | Identified Multirail 14869 | -3/Testing | Lost 3 allies 14896 | -3/Testing | Found Hvy. Reflective Plating 15050 | -3/Testing | Found Prototype Leg 15051 | -3/Testing | Identified Myomer Exoskeleton 15117 | -3/Testing | Build established: Scavenger-Executioner 15183 | -3/Testing | First assault squad dispatched 15248 | -3/Testing | Found Fusion Bomb Launcher 15292 | -3/Testing | Unstable Terrabomb Derivative detonated 15320 | -3/Testing | Spotted Striker 15332 | -3/Testing | Spotted Striker 15333 | -3/Testing | Spotted Alpha 7 15336 | -3/Testing | Destroyed Striker 15340 | -3/Testing | Destroyed Striker 15388 | -3/Testing | Stole the SGEMP Prototype 15417 | -3/Testing | Spotted PG-E2ESIQY2EM 15444 | -3/Testing | Found Prototype Hackware 15484 | -3/Testing | Lost 12 parts (2p6u4w) 15538 | -3/Testing | Found Prototype Device 15539 | -3/Testing | Identified 2N-1CE's Frost Array 15558 | -3/Testing | Crushed by falling debris 15622 | -3/Testing | System corruption reached 10% 15647 | -3/Testing | Core integrity fell below 50% 15670 | -3/Testing | Discovered new exit (range 15) 15689 | -3/Testing | Core integrity fell below 20% 15696 | -3/Testing | Identified exit to Research 15696 | -3/Testing | Destroyed by P-80 Master with Gamma Rifle Last Messages --------------- Exoskeleton rejected. 15676_ R-10 Processor collects Enh. Multireflex Exoskeleton. 15676_ Myomer Exoskeleton destroyed. 15676_ P-80 Master resets S-43 Plague, system corruption cleaned. 15689_ Slug penetrates Wall. 15690_ Identified Cld. Impulse Thruster. 15691_ P-80 Master resets S-43 Plague, system corruption cleaned. 15691_ Slug penetrates Wall. 15691_ Penetrated by Slug. 15693_ S-43 Plague destroyed. 15693_ Biometal Leg destroyed. 15694_ System corrupted: Cld. Impulse Thruster rejected. 15694_ Acquired Cld. Impulse Thruster. 15695_ Slug penetrates Wall. 15696_ EXIT=IDENTIFIED: RESEARCH 15696_ Cld. Impulse Thruster destroyed. Map ----- +----------------------------------------------------+ | | | | | | | | | | | | | | | ?????????????????????????????????????????????????? | | ?????????????????????????????????????????????????? | | ?????????????????????????????????????????????????? | | ####?????????????????????????????????????????????? | | ?????????????????????????????????????????????? | | #????????????????????????????????????????????? | | #??????###??#######??????????????????????????? | | #????? #? ! #??????????????????????????? | | #? ???" #?"" #??????????????????????????? | | #! """ #?"" ####???????????????????????? | | # """ #""" "" #???????????????????????? | | # #""" ! """#???????????????????????? | | # " "" #""" R"#???????????????????????? | | #[ "R"" #""" ""?????????????????????????? | | #?? """ #""" ] #??????????????????????????? | | #???? #?? ????????????????????????????? | | #######/######+###########???????????????????? | | R =s #???????????????????? | | R g p=%[ @< #???????????????????? | | # "" " g Qp * #???????????????????? | | # """""" """ h 7 #???????????????????? | | # ""F "" """ ######+####???????????????????? | | """ """ #?????????????????????????????? | | ! ###???????????????????????????? | | ! """ """ ????????????????????????????? | | !! """ """ ###???????????????????????????? | | ! """ """ #?????????????????????????????? | | #?????????????????????????????? | | #?????????????????????????????? | | #?????????????????????????????? | | / ????????????????????????? | | ###### #####???????????????????????????? | | #????? ????????????????????????????????? | | +#+### #??????????????????????????????????????? | | ?????# #??????????????????????????????????????? | | ?????# #??????????????????????????????????????? | | ?????# #??????#???????????????????????????????? | | ?????# #?????/####????????????????????????????? | | ?????# #???? ?????????????????????????????? | | ?????# #??? ??????????????????????????????? | | ?????# #??? ???????????????????????????????? | | ????? #?? ???????????????????????????????? | | ##+# # #? """???????????????????????????????? | +----------------------------------------------------+ Best States ------------- Heat Dissipation 165 Energy Generation 59 Energy Capacity 555 Matter Stores 868 Matter Capacity 900 Sight Range 22 Robot Scan Range 18 Terrain Scan Range 16 Terrain Scan Density 10 Power Amplification 40 Armor Coverage 825 Resistance: TH 30 Phase Shifting 5 Evasion (%) 64 Melee Accuracy 14 Recoil Reduction 6 Matter Filtering 50 Defensive Hacking 22 Authchip Count 11 Item Schematics ----------------- Hcp. Matter Pod | -8/Materials | Hacked Imp. Medium Armor Plating | -7/Zion | Archive Imp. Core Shielding | -7/Zion | Archive Hvy. Laser | -7/Zion | Archive Hvy. Pick | -7/Zion | Archive Matter Filter | -7/Zion | Archive Lgt. Angular Momentum Engine | -7/Zion | Archive Kinecellerator | -7/Zion | Archive Arm. Medium Treads | -7/Zion | Archive Hvy. Phase Cannon | -7/Zion | Archive Imp. Field Recycling Unit | -7/Zion | Archive Phase Cannon | -7/Zion | Archive Coolant Injector | -7/Zion | Archive Flexi-carbon Leg | -7/Zion | Archive Imp. Cryofiber Web | -7/Zion | Archive Gravmag System | -7/Zion | Archive Assault Drone Bay | -5/Zhirov | Free Exp. Heat Sink | -5/Zhirov | Free Exp. Optical Array | -5/Zhirov | Free Imp. Arc Thrower | -5/Zhirov | Free Exp. Melee Analysis Suite | -3/Testing | Archive Adv. Myomer Leg | -3/Testing | Archive Adv. Kinecellerator | -3/Testing | Archive Spectral Analyzer | -3/Testing | Archive Hvy. Hardcell Cannon | -3/Testing | Archive Com. Mass Driver | -3/Testing | Archive Exp. Target Analyzer | -3/Testing | Archive Exp. Cooling System | -3/Testing | Archive Exp. Coolant Injector | -3/Testing | Archive Robot Schematics ------------------ S-27 Virus | -7/Zion | Archive P-60 Hacker | -7/Zion | Archive L-31 Rogue | -7/Zion | Archive C-57 Dissector | -7/Zion | Archive S-43 Plague | -3/Testing | Archive Fabricated ------------ C-57 Dissector | x3 | -5/Factory | Authchip Repaired ---------- Nothing Studied --------- None Alien Tech Used ----------------- Integrated Reactor Transdimensional Reconstructor Achievements -------------- None Challenges ------------ None Game ------ Seed TeslaCloakingCompressor Manual? 0 Play Time 02:08:59 Cumulative 695.8 hours Start 2026.02.11 @ 14:21:14 End 2026.02.11 @ 20:36:24 Sessions 20 Manual Loads 0 Difficulty Rogue Special Mode None Game No. 863 Rogue 863 Adventurer 0 Explorer 0 Win Type - Total 25 Types 12/1/3/3/2/0/2/2/0/0 Lore% 96 Gallery% 91 Achievement% 82 Wizard Run 0 Options --------- Layout 2 ASCII 0 Keyboard 0 Movement Mouse Keybinds 0 Fullscreen 2 Font 24/Tamsyn Map View 50x44 Zoom Use 0% Tactical HUD 1 Map Filters NONE Filters NONE Steam 1 RUN: 87f63fe3-933d-4f8c-aa80-4bf71a153e26